fUSD/lending_fUSD_20260418
["ID","MTS","AMOUNT","RATE_DAILY","PERIOD"]
[420717988,1776491379931,-329.0,0.00043562,120]
[420717989,1776491380034,-329.0,0.00043562,120]
[420717990,1776491380137,-329.0,0.00043562,120]
[420717991,1776491380235,-329.0,0.00043562,120]
[420717992,1776491380334,-329.0,0.00043562,120]
[420717993,1776491380437,-329.0,0.00043562,120]
[420717994,1776491380545,-329.0,0.00043562,120]
[420717995,1776491380651,-329.0,0.00043562,120]
[420717996,1776491380755,-329.0,0.00043562,120]
[420717997,1776491380860,-329.0,0.00043562,120]
[420717998,1776491380966,-329.0,0.00043562,120]
[420717999,1776491381076,-329.0,0.00043562,120]
[420718000,1776491381435,-329.0,0.00043562,120]
[420718001,1776491381578,-500.0,0.00043562,120]
[420718002,1776491381694,-10000.0,0.00043585,120]
[420718003,1776491381809,-500.0,0.00043616,120]
[420718004,1776491381921,-220.81588049,0.00043663,120]
[420718005,1776491382036,-150.0,0.00043681,120]
[420718006,1776491382152,-150.0,0.00043681,120]
[420718007,1776491382286,-175.7233,0.000437,120]
[420718008,1776491382435,-150000.0,0.000437,120]
[420718009,1776491382623,-2561.32712368,0.000437,120]
[420718010,1776491382787,-24998.0,0.000437,120]
[420718011,1776491382918,-2699.9368916,0.000437,120]
[420718012,1776491383086,-500.0,0.00043726,120]
[420718013,1776491383281,-396.74986875,0.000438,120]
[420718014,1776491383478,-13482.18751668,0.000438,120]
[420718015,1776491383620,-2005.59165573,0.000438,120]
[420718016,1776491383742,-500.0,0.00043808,120]
[420718017,1776491383880,-1000.0,0.00043835,120]
[420718018,1776491384078,-1000.0,0.00043835,120]
[420718019,1776491384240,-1000.0,0.00043835,120]
[420718020,1776491384402,-1000.0,0.00043835,120]
[420718021,1776491384616,-1000.0,0.00043835,120]
[420718022,1776491384804,-1000.0,0.00043835,120]
[420718023,1776491384983,-1000.0,0.00043835,120]
[420718024,1776491385125,-1000.0,0.00043835,120]
[420718025,1776491385265,-1000.0,0.00043835,120]
[420718026,1776491385382,-1000.0,0.00043835,120]
[420718027,1776491385506,-1000.0,0.00043835,120]
[420718028,1776491385634,-1000.0,0.00043835,120]
[420718029,1776491385747,-1000.0,0.00043835,120]
[420718030,1776491385866,-1000.0,0.00043835,120]
[420718031,1776491385976,-1000.0,0.00043835,120]
[420718032,1776491386085,-1000.0,0.00043835,120]
[420718033,1776491386195,-1000.0,0.00043835,120]
[420718034,1776491386302,-1000.0,0.00043835,120]
[420718035,1776491386407,-1000.0,0.00043835,120]
[420718036,1776491386510,-1000.0,0.00043835,120]
[420718037,1776491386616,-1000.0,0.00043835,120]
[420718038,1776491386722,-1000.0,0.00043835,120]
[420718039,1776491386825,-1000.0,0.00043835,120]
[420718040,1776491386926,-1000.0,0.00043835,120]
[420718041,1776491387028,-1000.0,0.00043835,120]
[420718042,1776491387128,-1000.0,0.00043835,120]
[420718043,1776491387226,-1000.0,0.00043835,120]
[420718044,1776491387320,-1000.0,0.00043835,120]
[420718045,1776491387416,-1000.0,0.00043835,120]
[420718046,1776491387511,-1000.0,0.00043835,120]
[420718047,1776491387607,-1000.0,0.00043835,120]
[420718048,1776491387704,-1000.0,0.00043835,120]
[420718049,1776491387798,-1000.0,0.00043835,120]
[420718050,1776491387893,-1000.0,0.00043835,120]
[420718051,1776491387987,-1000.0,0.00043835,120]
[420718052,1776491388079,-1000.0,0.00043835,120]
[420718053,1776491388169,-1000.0,0.00043835,120]
[420718054,1776491388256,-1000.0,0.00043835,120]
[420718055,1776491388344,-1000.0,0.00043835,120]
[420718056,1776491388430,-1000.0,0.00043835,120]
[420718057,1776491388518,-1000.0,0.00043835,120]
[420718058,1776491388609,-1000.0,0.00043835,120]
[420718059,1776491388696,-1000.0,0.00043835,120]
[420718060,1776491388781,-1000.0,0.00043835,120]
[420718061,1776491388868,-1000.0,0.00043835,120]
[420718062,1776491388953,-1000.0,0.00043835,120]
[420718063,1776491389038,-1000.0,0.00043835,120]
[420718064,1776491389122,-1000.0,0.00043835,120]
[420718065,1776491389208,-1000.0,0.00043835,120]
[420718066,1776491389289,-1000.0,0.00043835,120]
[420718067,1776491389369,-1000.0,0.00043835,120]
[420718068,1776491389449,-1000.0,0.00043835,120]
[420718069,1776491389529,-555.4886033,0.00043835,120]
[420718070,1776491389615,-1000.0,0.00043835,120]
[420718071,1776491389697,-1000.0,0.00043835,120]
[420718072,1776491389777,-1000.0,0.00043835,120]
[420718073,1776491389856,-1000.0,0.00043835,120]
[420718074,1776491389935,-1000.0,0.00043835,120]
[420718075,1776491390015,-1000.0,0.00043835,120]
[420718076,1776491390092,-1000.0,0.00043835,120]
[420718077,1776491390169,-1000.0,0.00043835,120]
[420718078,1776491390247,-1000.0,0.00043835,120]
[420718079,1776491390324,-1000.0,0.00043835,120]
[420718080,1776491390402,-1000.0,0.00043835,120]
[420718081,1776491390483,-1000.0,0.00043835,120]
[420718082,1776491390563,-1000.0,0.00043835,120]
[420718083,1776491390647,-1000.0,0.00043835,120]
[420718084,1776491390726,-1000.0,0.00043835,120]
[420718085,1776491390804,-1000.0,0.00043835,120]
[420718086,1776491390885,-1000.0,0.00043835,120]
[420718087,1776491390970,-1000.0,0.00043835,120]
[420718088,1776491391051,-500.0,0.00043835,120]
[420718089,1776491391130,-500.0,0.00043835,120]
[420718090,1776491391209,-500.0,0.00043835,120]
[420718091,1776491391287,-500.0,0.00043835,120]
[420718092,1776491391367,-500.0,0.00043835,120]
[420718093,1776491391445,-500.0,0.00043835,120]
[420718094,1776491391524,-500.0,0.00043835,120]
[420718095,1776491391608,-496.48602446,0.00043835,120]
[420718096,1776491391690,-500.0,0.00043835,120]
[420718097,1776491391772,-500.0,0.00043835,120]
[420718098,1776491391856,-500.0,0.00043835,120]
[420718099,1776491391943,-516.43073278,0.00043835,120]
[420718100,1776491392038,-1199.0,0.00043836,120]
[420718101,1776491393712,61708.09691665,0.00043835,120]
[420718102,1776491393801,9719.51909815,0.00043835,120]
[420718103,1776491394033,162865.55910489,0.00043835,120]
[420718104,1776491394551,5760.98,0.00043,120]
[420718105,1776491394637,8681.58,0.00043,120]
[420718106,1776491398123,-300.0,7.411e-05,2]
[420718107,1776491398143,-1679.53114465,7.412e-05,2]
[420718109,1776491432138,-8320.85885535,7.412e-05,2]
[420718110,1776491432149,-5000.0,7.487e-05,2]
[420718111,1776491432159,-193.0,7.487e-05,2]
[420718112,1776491432169,-653.2773348,7.498e-05,2]
[420718113,1776491432179,-500.0,7.543e-05,2]
[420718114,1776491432190,-150.0,7.562e-05,2]
[420718115,1776491432200,-250.0,7.562e-05,2]
[420718116,1776491432210,-195.88571657,7.562e-05,2]
[420718117,1776491432221,-209.93421614,7.562e-05,2]
[420718118,1776491432230,-500.0,7.562e-05,2]
[420718119,1776491432240,-362.72908949,7.562e-05,2]
[420718120,1776491432250,-245.22434605,7.562e-05,2]
[420718121,1776491432261,-500.0,7.562e-05,2]
[420718122,1776491432271,-500.0,7.562e-05,2]
[420718123,1776491432281,-500.0,7.562e-05,2]
[420718124,1776491432291,-1061504.7538,7.563e-05,2]
[420718125,1776491432301,-4984.288,7.581e-05,2]
[420718126,1776491432311,-194.48806091,7.581e-05,2]
[420718127,1776491432321,-10661.24,7.663e-05,2]
[420718128,1776491432331,-1840.04,7.702e-05,2]
[420718129,1776491432341,-1344.396,7.777e-05,2]
[420718130,1776491432352,-169.427,7.777e-05,2]
[420718131,1776491432361,-14127.07,7.833e-05,2]
[420718132,1776491432371,-9999.99,7.833e-05,2]
[420718133,1776491432381,-299.99,7.833e-05,2]
[420718134,1776491432391,-7973.56,7.833e-05,2]
[420718135,1776491432401,-9467.28,7.833e-05,2]
[420718136,1776491432412,-9999.99,7.833e-05,2]
[420718137,1776491432422,-1000.0,7.854e-05,2]
[420718138,1776491432432,-1000.0,7.854e-05,2]
[420718139,1776491432443,-4999.99,7.854e-05,2]
[420718141,1776491432453,-150.99,7.854e-05,2]
[420718142,1776491432463,-500.0,7.855e-05,2]
[420718145,1776491432479,-500.0,7.855e-05,2]
[420718147,1776491432489,-500.0,7.855e-05,2]
[420718148,1776491432500,-500.0,7.855e-05,2]
[420718149,1776491432510,-500.0,7.855e-05,2]
[420718150,1776491432521,-500.0,7.855e-05,2]
[420718151,1776491432531,-500.0,7.855e-05,2]
[420718152,1776491432542,-500.0,7.855e-05,2]
[420718153,1776491432553,-500.0,7.855e-05,2]
[420718154,1776491432563,-500.0,7.855e-05,2]
[420718155,1776491432573,-500.0,7.855e-05,2]
[420718156,1776491432583,-500.0,7.855e-05,2]
[420718157,1776491432594,-500.0,7.855e-05,2]
[420718158,1776491432604,-500.0,7.855e-05,2]
[420718159,1776491432615,-500.0,7.855e-05,2]
[420718160,1776491432625,-500.0,7.855e-05,2]
[420718161,1776491432636,-500.0,7.855e-05,2]
[420718162,1776491432646,-500.0,7.855e-05,2]
[420718163,1776491432656,-500.0,7.855e-05,2]
[420718164,1776491432667,-500.0,7.855e-05,2]
[420718165,1776491432677,-217.252306,7.855e-05,2]
[420718166,1776491432687,-153.85445399,7.855e-05,2]
[420718167,1776491432697,-185.7291,7.855e-05,2]
[420718168,1776491432706,-226.00469491,7.955e-05,2]
[420718169,1776491432716,-338.7774505,8.091e-05,2]
[420718170,1776491432727,-5000.01,8.152e-05,2]
[420718171,1776491432736,-193.0,8.152e-05,2]
[420718172,1776491432746,-5000.0,8.153e-05,2]
[420718173,1776491432756,-193.0,8.153e-05,2]
[420718174,1776491432766,-338.3785733,8.153e-05,2]
[420718175,1776491432777,-4342.1309,8.192e-05,2]
[420718176,1776491432787,-159.84520399,8.219e-05,2]
[420718177,1776491432797,-150.0,8.219e-05,2]
[420718178,1776491432806,-150.0,8.219e-05,2]
[420718179,1776491432816,-150.0,8.219e-05,2]
[420718180,1776491432826,-183.59850605,8.219e-05,2]
[420718181,1776491432836,-150.0,8.219e-05,2]
[420718182,1776491432846,-150.0,8.219e-05,2]
[420718183,1776491432857,-500.0,8.219e-05,2]
[420718184,1776491432870,-243.99851955,8.219e-05,2]
[420718185,1776491432881,-500.0,8.219e-05,2]
[420718186,1776491432891,-500.0,8.219e-05,2]
[420718187,1776491432903,-500.0,8.219e-05,2]
[420718188,1776491432914,-500.0,8.219e-05,2]
[420718189,1776491432924,-500.0,8.219e-05,2]
[420718190,1776491432934,-500.0,8.219e-05,2]
[420718191,1776491432945,-500.0,8.219e-05,2]
[420718192,1776491432955,-500.0,8.219e-05,2]
[420718193,1776491432965,-500.0,8.219e-05,2]
[420718194,1776491432975,-500.0,8.219e-05,2]
[420718195,1776491432985,-500.0,8.219e-05,2]
[420718196,1776491432995,-500.0,8.219e-05,2]
[420718197,1776491433005,-287.25227815,8.219e-05,2]
[420718198,1776491433016,-500.0,8.219e-05,2]
[420718199,1776491433027,-500.0,8.219e-05,2]
[420718200,1776491433036,-506.06079016,8.219e-05,2]
[420718201,1776491433046,-500.0,8.219e-05,2]
[420718202,1776491433058,-500.0,8.219e-05,2]
[420718203,1776491433068,-350.19016232,8.219e-05,2]
[420718204,1776491433078,-512.58,8.219e-05,2]
[420718205,1776491433088,-500.0,8.219e-05,2]
[420718206,1776491433101,-445.0,8.219e-05,2]
[420718207,1776491433111,-500.0,8.219e-05,2]
[420718208,1776491433122,-445.0,8.219e-05,2]
[420718209,1776491433131,-500.0,8.219e-05,2]
[420718210,1776491433141,-669.0,8.219e-05,2]
[420718211,1776491433151,-445.0,8.219e-05,2]
[420718212,1776491433161,-500.0,8.219e-05,2]
[420718213,1776491433171,-669.0,8.219e-05,2]
[420718214,1776491433180,-445.0,8.219e-05,2]
[420718215,1776491433191,-449.96221161,8.219e-05,2]
[420718216,1776491433201,-669.0,8.219e-05,2]
[420718217,1776491433211,-669.0,8.219e-05,2]
[420718218,1776491433220,-445.0,8.219e-05,2]
[420718219,1776491433230,-669.0,8.219e-05,2]
[420718220,1776491433240,-445.0,8.219e-05,2]
[420718221,1776491433250,-669.0,8.219e-05,2]
[420718222,1776491433260,-445.0,8.219e-05,2]
[420718223,1776491433271,-669.0,8.219e-05,2]
[420718224,1776491433281,-445.0,8.219e-05,2]
[420718225,1776491433291,-669.0,8.219e-05,2]
[420718226,1776491433301,-445.0,8.219e-05,2]
[420718227,1776491433311,-669.0,8.219e-05,2]
[420718228,1776491433325,-445.0,8.219e-05,2]
[420718229,1776491433336,-669.0,8.219e-05,2]
[420718230,1776491433346,-445.0,8.219e-05,2]
[420718231,1776491433357,-669.0,8.219e-05,2]
[420718232,1776491433368,-445.0,8.219e-05,2]
[420718233,1776491433379,-445.0,8.219e-05,2]
[420718234,1776491433390,-449.0,8.219e-05,2]
[420718235,1776491433401,-669.0,8.219e-05,2]
[420718236,1776491433413,-445.0,8.219e-05,2]
[420718237,1776491433423,-449.0,8.219e-05,2]
[420718238,1776491433435,-669.0,8.219e-05,2]
[420718239,1776491433445,-445.0,8.219e-05,2]
[420718240,1776491433456,-669.0,8.219e-05,2]
[420718241,1776491433467,-449.0,8.219e-05,2]
[420718242,1776491433477,-445.0,8.219e-05,2]
[420718243,1776491433487,-449.0,8.219e-05,2]
[420718244,1776491433497,-669.0,8.219e-05,2]
[420718245,1776491433508,-449.0,8.219e-05,2]
[420718246,1776491433520,-449.0,8.219e-05,2]
[420718247,1776491433530,-449.0,8.219e-05,2]
[420718248,1776491433541,-449.0,8.219e-05,2]
[420718249,1776491433551,-445.0,8.219e-05,2]
[420718250,1776491433561,-449.0,8.219e-05,2]
[420718251,1776491433571,-669.0,8.219e-05,2]
[420718252,1776491433582,-449.0,8.219e-05,2]
[420718253,1776491433592,-449.0,8.219e-05,2]
[420718254,1776491433602,-449.0,8.219e-05,2]
[420718255,1776491433613,-449.0,8.219e-05,2]
[420718256,1776491433623,-150.0,8.219e-05,2]
[420718257,1776491433633,-449.0,8.219e-05,2]
[420718258,1776491433644,-150.0,8.219e-05,2]
[420718259,1776491433654,-445.0,8.219e-05,2]
[420718260,1776491433664,-150.0,8.219e-05,2]
[420718261,1776491433675,-669.0,8.219e-05,2]
[420718262,1776491433685,-150.0,8.219e-05,2]
[420718263,1776491433695,-449.0,8.219e-05,2]
[420718264,1776491433705,-206.54368852,8.219e-05,2]
[420718265,1776491433715,-449.0,8.219e-05,2]
[420718266,1776491433725,-445.0,8.219e-05,2]
[420718267,1776491433735,-669.0,8.219e-05,2]
[420718268,1776491433745,-449.0,8.219e-05,2]
[420718269,1776491433756,-445.0,8.219e-05,2]
[420718270,1776491433766,-669.0,8.219e-05,2]
[420718271,1776491433786,-449.0,8.219e-05,2]
[420718272,1776491433797,-449.0,8.219e-05,2]
[420718273,1776491433808,-669.0,8.219e-05,2]
[420718274,1776491433819,-445.0,8.219e-05,2]
[420718275,1776491433829,-449.0,8.219e-05,2]
[420718276,1776491433839,-445.0,8.219e-05,2]
[420718277,1776491433850,-669.0,8.219e-05,2]
[420718278,1776491433861,-449.0,8.219e-05,2]
[420718279,1776491433872,-445.0,8.219e-05,2]
[420718280,1776491433883,-669.0,8.219e-05,2]
[420718281,1776491433894,-449.0,8.219e-05,2]
[420718282,1776491433905,-462.92590884,8.219e-05,2]
[420718283,1776491433919,-669.0,8.219e-05,2]
[420718284,1776491433929,-449.0,8.219e-05,2]
[420718285,1776491433939,-678.11702059,8.219e-05,2]
[420718286,1776491433950,-455.08746093,8.219e-05,2]
[420718287,1776491433960,-150.0,8.219e-05,2]
[420718288,1776491433970,-205.76685609,8.219e-05,2]
[420718289,1776491433981,-500.0,8.219e-05,2]
[420718290,1776491433991,-500.0,8.219e-05,2]
[420718291,1776491434001,-233.15055988,8.219e-05,2]
[420718292,1776491434011,-500.0,8.219e-05,2]
[420718293,1776491434021,-500.0,8.219e-05,2]
[420718294,1776491434032,-155.06281283,8.219e-05,2]
[420718295,1776491434551,-596.0,8.219e-05,2]
[420718296,1776491434561,-152.29593975,8.219e-05,2]
[420718297,1776491434571,-596.0,8.219e-05,2]
[420718298,1776491434581,-596.0,8.219e-05,2]
[420718299,1776491434590,-596.0,8.219e-05,2]
[420718300,1776491434600,-596.0,8.219e-05,2]
[420718301,1776491434610,-596.0,8.219e-05,2]
[420718302,1776491434619,-596.0,8.219e-05,2]
[420718303,1776491434628,-500.0,8.219e-05,2]
[420718304,1776491434638,-500.0,8.219e-05,2]
[420718305,1776491434648,-596.0,8.219e-05,2]
[420718306,1776491434658,-500.0,8.219e-05,2]
[420718307,1776491434667,-596.0,8.219e-05,2]
[420718308,1776491434677,-500.0,8.219e-05,2]
[420718309,1776491434687,-596.0,8.219e-05,2]
[420718310,1776491434697,-500.0,8.219e-05,2]
[420718311,1776491434706,-596.0,8.219e-05,2]
[420718312,1776491434717,-596.0,8.219e-05,2]
[420718313,1776491434726,-500.0,8.219e-05,2]
[420718314,1776491434736,-596.0,8.219e-05,2]
[420718315,1776491434746,-500.0,8.219e-05,2]
[420718316,1776491434755,-596.0,8.219e-05,2]
[420718317,1776491434765,-323.00897673,8.219e-05,2]
[420718318,1776491434775,-596.0,8.219e-05,2]
[420718319,1776491434785,-596.0,8.219e-05,2]
[420718320,1776491434794,-596.0,8.219e-05,2]
[420718321,1776491434804,-596.0,8.219e-05,2]
[420718322,1776491434814,-596.0,8.219e-05,2]
[420718323,1776491434823,-596.0,8.219e-05,2]
[420718324,1776491434832,-596.0,8.219e-05,2]
[420718325,1776491434842,-596.0,8.219e-05,2]
[420718326,1776491434851,-212.44769369,8.219e-05,2]
[420718327,1776491434860,-1217.84,8.219e-05,2]
[420718328,1776491434870,-5738.64330203,8.219e-05,2]
[420718329,1776491434885,-3186.66567714,8.219e-05,2]
[420718330,1776491434897,-6930.43102083,8.219e-05,2]
[420718331,1776491434906,-191.58,8.22e-05,2]
[420718332,1776491434915,-250.0,8.234e-05,2]
[420718333,1776491434925,-255.0,8.319e-05,2]
[420718334,1776491434934,-166.66,8.356e-05,2]
[420718335,1776491434944,-3783.11061607,8.409e-05,2]
[420718336,1776491434955,-19229.06348211,8.409e-05,2]
[420718337,1776491434967,-1936.09637852,8.409e-05,2]
[420718338,1776491434976,-151.218724,8.409e-05,2]
[420718339,1776491434985,-151.0,8.409e-05,2]
[420718340,1776491434994,-151.0,8.409e-05,2]
[420718341,1776491435004,-282.0,8.431e-05,7]
[420718342,1776491435013,-150.0,8.434e-05,2]
[420718343,1776491435023,-14181.64413246,8.435e-05,2]
[420718348,1776491440141,-596.0,8.219e-05,2]
[420718349,1776491440151,-618.01544497,8.219e-05,2]
[420718350,1776491440161,-72780.68129936,8.435e-05,2]
[420718353,1776491440343,-3821.80203496,8.435e-05,2]
[420718357,1776491440389,-301.717,8.435e-05,2]
[420718360,1776491440543,-0.60697945,8.435e-05,2]
[420718375,1776491443877,-4020.92036833,0.00038623,120]
[420718381,1776491443962,-162.74566723,0.00038623,120]
[420718383,1776491444047,-18765.0,0.0004,120]
[420718384,1776491444130,-825.0,0.00041791,120]
[420718385,1776491444209,-2900.0,0.00042003,120]
[420718386,1776491444288,-150.0,0.00042046,120]
[420718387,1776491444363,-150.0,0.00042046,120]
[420718388,1776491444439,-150.0,0.00042047,120]
[420718389,1776491444521,-150.0,0.0004232,120]
[420718390,1776491444603,-150.0,0.0004232,120]
[420718391,1776491444684,-150.0,0.00042321,120]
[420718392,1776491444766,-151.0,0.00042466,120]
[420718393,1776491444850,-151.0,0.00042466,120]
[420718394,1776491444931,-151.0,0.00042466,120]
[420718395,1776491445007,-151.000009,0.00042466,120]
[420718396,1776491445085,-150.0,0.00042594,120]
[420718397,1776491445164,-150.0,0.00042868,120]
[420718398,1776491445242,-150.0,0.00042868,120]
[420718399,1776491445319,-150.0,0.00042869,120]
[420718400,1776491445399,-150.0,0.00042959,120]
[420718401,1776491445477,-698.45323456,0.00043,120]
[420718402,1776491445558,-31939.03,0.00043,120]
[420718403,1776491445641,-3063.98,0.00043,120]
[420718404,1776491445719,-2895.2,0.00043,120]
[420718405,1776491445800,-7962.14,0.00043,120]
[420718406,1776491445880,-2900.0,0.00043099,120]
[420718407,1776491445963,-1964.59986767,0.000431,120]
[420718409,1776491446042,-150.0,0.00043142,120]
[420718410,1776491446125,-150.0,0.00043142,120]
[420718411,1776491446202,-150.0,0.00043143,120]
[420718412,1776491446283,-884.40567703,0.000432,120]
[420718413,1776491446362,-484.0525828,0.000432,120]
[420718414,1776491446440,-723.74244002,0.000432,120]
[420718415,1776491446521,-210.77908046,0.000432,120]
[420718416,1776491446603,-183.27191059,0.000432,120]
[420718417,1776491446685,-596.43510217,0.000432,120]
[420718418,1776491446768,-619.47725633,0.000432,120]
[420718420,1776491446851,-1320.84411845,0.000432,120]
[420718424,1776491446935,-1032.10721353,0.000432,120]
[420718425,1776491447018,-779.93054276,0.000432,120]
[420718426,1776491447101,-749.81774755,0.000432,120]
[420718427,1776491447180,-667.85091004,0.000432,120]
[420718428,1776491447258,-2097.05062345,0.000432,120]
[420718429,1776491447335,-851.34461254,0.000432,120]
[420718430,1776491447412,-150.0,0.00043416,120]
[420718431,1776491447492,-2953.1,0.000435,120]
[420718432,1776491447574,-8121.38,0.000435,120]
[420718433,1776491447657,-150.0,0.00043531,120]
[420718434,1776491447738,-265.69795298,0.00043531,120]
[420718435,1776491447819,-150.0,0.0004369,120]
[420718436,1776491447899,-150.0,0.0004369,120]
[420718437,1776491447979,-150.0,0.0004369,120]
[420718438,1776491448056,-151.10675101,0.00043792,120]
[420718439,1776491448132,-1368.04,0.000438,120]
[420718440,1776491448207,-1489.13,0.0004383,120]
[420718441,1776491448286,-500.0,0.00043835,120]
[420718442,1776491448362,-151.0,0.00043835,120]
[420718443,1776491448437,-151.0,0.00043835,120]
[420718444,1776491448513,-518.5,0.00043835,120]
[420718445,1776491448599,-156.587,0.00043835,120]
[420718446,1776491448680,-537.6845,0.00043835,120]
[420718447,1776491448757,-156.587,0.00043835,120]
[420718448,1776491448836,-162.380719,0.00043835,120]
[420718449,1776491448917,-557.5788265,0.00043835,120]
[420718450,1776491448996,-162.380719,0.00043835,120]
[420718451,1776491449072,-168.3888056,0.00043835,120]
[420718452,1776491449148,-578.20924308,0.00043835,120]
[420718453,1776491449223,-168.3888056,0.00043835,120]
[420718454,1776491449297,-174.61919141,0.00043835,120]
[420718455,1776491449371,-599.60298507,0.00043835,120]
[420718456,1776491449446,-174.61919141,0.00043835,120]
[420718457,1776491449524,-181.08010149,0.00043835,120]
[420718458,1776491449605,-621.78829552,0.00043835,120]
[420718459,1776491449683,-187.78006525,0.00043835,120]
[420718460,1776491449759,-181.08010149,0.00043835,120]
[420718461,1776491449839,-692.91088998,0.00043835,120]
[420718462,1776491449926,-194.72792766,0.00043835,120]
[420718463,1776491450007,-187.78006525,0.00043835,120]
[420718464,1776491450086,-201.93286099,0.00043835,120]
[420718465,1776491450164,-194.72792766,0.00043835,120]
[420718466,1776491450240,-209.40437684,0.00043835,120]
[420718467,1776491450690,-201.93286099,0.00043835,120]
[420718468,1776491450769,-247.06018669,0.00043835,120]
[420718469,1776491450848,-209.40437684,0.00043835,120]
[420718470,1776491450926,-217.15233878,0.00043835,120]
[420718471,1776491451007,-211.23035017,0.00043835,120]
[420718472,1776491451087,-500.0,0.00043836,120]
[420718473,1776491451166,-500.0,0.00043836,120]
[420718474,1776491451244,-2000.0,0.00043836,120]
[420718475,1776491451319,-500.0,0.00043836,120]
[420718476,1776491451396,-2000.0,0.00043836,120]
[420718477,1776491451471,-1610.62189726,0.00043836,120]
[420718478,1776491451552,-500.0,0.00043836,120]
[420718479,1776491451630,-500.0,0.00043836,120]
[420718480,1776491451709,-500.0,0.00043836,120]
[420718481,1776491451792,-500.0,0.00043836,120]
[420718482,1776491451875,-500.0,0.00043836,120]
[420718483,1776491451954,-500.0,0.00043836,120]
[420718484,1776491452032,-578.32546725,0.00043836,120]
[420718485,1776491452110,-500.0,0.00043836,120]
[420718486,1776491452190,-500.0,0.00043836,120]
[420718487,1776491452266,-500.0,0.00043836,120]
[420718488,1776491452358,-500.0,0.00043836,120]
[420718489,1776491452438,-500.0,0.00043836,120]
[420718490,1776491452520,-500.0,0.00043836,120]
[420718491,1776491452605,-500.0,0.00043836,120]
[420718492,1776491452690,-500.0,0.00043836,120]
[420718493,1776491452773,-500.0,0.00043836,120]
[420718494,1776491452857,-500.0,0.00043836,120]
[420718495,1776491452941,-500.0,0.00043836,120]
[420718496,1776491453024,-152.0,0.00043836,120]
[420718497,1776491453103,-251.0,0.00043836,120]
[420718498,1776491453183,-2345.0,0.00043836,120]
[420718499,1776491453259,-260.287,0.00043836,120]
[420718500,1776491453335,-152.0,0.00043836,120]
[420718501,1776491453410,-2345.0,0.00043836,120]
[420718502,1776491453487,-269.917619,0.00043836,120]
[420718503,1776491453564,-152.0,0.00043836,120]
[420718504,1776491453643,-1660.13272956,0.00043836,120]
[420718505,1776491453722,-152.0,0.00043836,120]
[420718506,1776491453803,-279.9045709,0.00043836,120]
[420718507,1776491453881,-152.0,0.00043836,120]
[420718508,1776491453958,-290.26104003,0.00043836,120]
[420718509,1776491454033,-152.0,0.00043836,120]
[420718510,1776491454107,-213.7530979,0.00043836,120]
[420718511,1776491454180,-152.0,0.00043836,120]
[420718512,1776491454253,-152.0,0.00043836,120]
[420718513,1776491454330,-152.0,0.00043836,120]
[420718514,1776491454405,-152.0,0.00043836,120]
[420718515,1776491454481,-152.0,0.00043836,120]
[420718516,1776491454562,-152.0,0.00043836,120]
[420718517,1776491454644,-152.0,0.00043836,120]
[420718518,1776491454720,-196.65292034,0.00043836,120]
[420718519,1776491456468,1342.0,0.00043835,120]
[420718520,1776491456563,13572.0,0.00043835,120]
[420718521,1776491456669,-5740.90391765,8.435e-05,2]
[420718522,1776491456681,-2314.17,8.435e-05,2]
[420718523,1776491456739,-27877.33943588,8.435e-05,2]
[420718524,1776491456996,807.84,0.00043562,120]
[420718525,1776491457191,155.74400329,0.00041749,120]
[420718526,1776491457275,807.84,0.00043562,120]
[420718527,1776491457383,155.74400329,0.00043489,120]
[420718528,1776491457582,643.91228282,0.00043562,120]